[Event "*** Titled Tuesday Blitz"]
[Site "Chess.com"]
[Date "2020.02.04"]
[Round "3"]
[White "Eloist"]
[Black "Jahonas"]
[Result "0-1"]
[WhiteElo "2241"]
[BlackElo "2410"]
[TimeControl "180+2"]
[EndTime "13:38:07 PST"]
[Termination "Jahonas won on time"]

1. e4 {[%clk 0:03:00.8]} 1... c6 {[%clk 0:03:00.4]} 2. Nf3 {[%clk 0:03:00.8]}
2... d5 {[%clk 0:03:01.6]} 3. Nc3 {[%clk 0:03:00.9]} 3... Bg4 {[%clk 0:03:00]}
4. d4 {[%clk 0:02:59.8]} 4... e6 {[%clk 0:03:00.2]} 5. h3 {[%clk 0:02:59]} 5...
Bh5 {[%clk 0:02:58.7]} 6. Bd3 {[%clk 0:02:57.9]} 6... Nd7 {[%clk 0:02:56.7]} 7.
O-O {[%clk 0:02:42.1]} 7... Bb4 {[%clk 0:02:55.7]} 8. Bd2 {[%clk 0:02:35]} 8...
Ne7 {[%clk 0:02:50.8]} 9. a3 {[%clk 0:02:35.2]} 9... Ba5 {[%clk 0:02:50.9]} 10.
Re1 {[%clk 0:02:31.5]} 10... O-O {[%clk 0:02:49.1]} 11. b4 {[%clk 0:02:28.8]}
11... Bb6 {[%clk 0:02:47.3]} 12. g4 {[%clk 0:02:13.3]} 12... Bg6 {[%clk
0:02:46.6]} 13. Kg2 {[%clk 0:02:08.6]} 13... dxe4 {[%clk 0:02:40]} 14. Nxe4
{[%clk 0:02:08.2]} 14... Nf6 {[%clk 0:02:29.8]} 15. Nxf6+ {[%clk 0:01:58.2]}
15... gxf6 {[%clk 0:02:29.9]} 16. Bh6 {[%clk 0:01:58.8]} 16... Re8 {[%clk
0:02:28.6]} 17. c4 {[%clk 0:01:53.6]} 17... Bc7 {[%clk 0:02:24.5]} 18. Qe2
{[%clk 0:01:35.7]} 18... Qd6 {[%clk 0:02:19.3]} 19. Qe3 {[%clk 0:01:30.5]} 19...
Rad8 {[%clk 0:02:16.3]} 20. Rad1 {[%clk 0:01:25.1]} 20... a5 {[%clk 0:02:16.5]}
21. h4 {[%clk 0:01:18.1]} 21... Bxd3 {[%clk 0:02:01.4]} 22. Qxd3 {[%clk
0:01:09]} 22... Ng6 {[%clk 0:02:02.4]} 23. Re4 {[%clk 0:01:02.6]} 23... axb4
{[%clk 0:01:52.4]} 24. axb4 {[%clk 0:00:59.2]} 24... Qxb4 {[%clk 0:01:24.8]} 25.
h5 {[%clk 0:00:55]} 25... Ne5 {[%clk 0:01:23.5]} 26. Rxe5 {[%clk 0:00:40.2]}
26... Bxe5 {[%clk 0:01:18.6]} 27. Rb1 {[%clk 0:00:17.5]} 27... Qe7 {[%clk
0:01:11]} 28. Qe4 {[%clk 0:00:04.6]} 28... Bb8 {[%clk 0:00:55.7]} 29. g5 {[%clk
0:00:03.1]} 29... f5 {[%clk 0:00:52.1]} 30. Qe3 {[%clk 0:00:03.5]} 30... e5
{[%clk 0:00:27.1]} 0-1

[Event "*** Titled Tuesday Blitz"]
[Site "Chess.com"]
[Date "2020.02.04"]
[Round "3"]
[White "Shukh_Nikolay"]
[Black "pawnwonder"]
[Result "1-0"]
[WhiteElo "2527"]
[BlackElo "2114"]
[TimeControl "180+2"]
[EndTime "13:38:14 PST"]
[Termination "Shukh_Nikolay won by resignation"]

1. d4 {[%clk 0:03:00]} 1... Nf6 {[%clk 0:02:47.2]} 2. c4 {[%clk 0:03:00.6]} 2...
g6 {[%clk 0:02:48]} 3. Nc3 {[%clk 0:03:01.1]} 3... Bg7 {[%clk 0:02:49.4]} 4. e4
{[%clk 0:03:01.7]} 4... d6 {[%clk 0:02:51.1]} 5. f3 {[%clk 0:03:03.1]} 5... O-O
{[%clk 0:02:52.3]} 6. Be3 {[%clk 0:03:04.7]} 6... c5 {[%clk 0:02:53.9]} 7. dxc5
{[%clk 0:03:01.7]} 7... dxc5 {[%clk 0:02:55.8]} 8. Qxd8 {[%clk 0:03:02.9]} 8...
Rxd8 {[%clk 0:02:57.2]} 9. Bxc5 {[%clk 0:03:04.5]} 9... Nc6 {[%clk 0:02:58.4]}
10. Nge2 {[%clk 0:02:58.7]} 10... b6 {[%clk 0:02:58.7]} 11. Ba3 {[%clk
0:02:58.2]} 11... Be6 {[%clk 0:02:58.6]} 12. Nf4 {[%clk 0:02:57.1]} 12... Nd4
{[%clk 0:02:49.2]} 13. Nxe6 {[%clk 0:02:55.5]} 13... fxe6 {[%clk 0:02:50.1]} 14.
O-O-O {[%clk 0:02:46.1]} 14... Kf7 {[%clk 0:02:44.8]} 15. Bd3 {[%clk 0:02:20.8]}
15... Rac8 {[%clk 0:02:42.5]} 16. Kb1 {[%clk 0:02:18.4]} 16... Nd7 {[%clk
0:02:40.6]} 17. Ne2 {[%clk 0:02:10.3]} 17... Ne5 {[%clk 0:02:37.8]} 18. Nxd4
{[%clk 0:01:58.9]} 18... Nxd3 {[%clk 0:02:18.9]} 19. Rxd3 {[%clk 0:01:58.1]}
19... Rxc4 {[%clk 0:02:15.3]} 20. Rhd1 {[%clk 0:01:42.6]} 20... Rcxd4 {[%clk
0:02:13.2]} 21. Rxd4 {[%clk 0:01:43.2]} 21... Rxd4 {[%clk 0:02:14.9]} 22. Rxd4
{[%clk 0:01:43.6]} 22... Bxd4 {[%clk 0:02:16.8]} 23. Kc2 {[%clk 0:01:44.7]}
23... Be5 {[%clk 0:02:15.6]} 24. h3 {[%clk 0:01:41.7]} 24... Bd6 {[%clk
0:02:07.1]} 25. Bxd6 {[%clk 0:01:36.2]} 25... exd6 {[%clk 0:02:09]} 26. Kc3
{[%clk 0:01:36.2]} 26... g5 {[%clk 0:02:02.5]} 27. Kc4 {[%clk 0:01:08.5]} 27...
a6 {[%clk 0:01:44.4]} 28. Kd4 {[%clk 0:00:58]} 28... Kf6 {[%clk 0:01:44.7]} 29.
e5+ {[%clk 0:00:55.4]} 29... dxe5+ {[%clk 0:01:25.3]} 30. Ke4 {[%clk 0:00:56.3]}
30... h5 {[%clk 0:01:15.9]} 31. g3 {[%clk 0:00:55]} 31... b5 {[%clk 0:00:15.8]}
32. b4 {[%clk 0:00:54.2]} 32... g4 {[%clk 0:00:15]} 33. fxg4 {[%clk 0:00:53.2]}
33... hxg4 {[%clk 0:00:16.3]} 34. h4 {[%clk 0:00:48.5]} 1-0

[Event "*** Titled Tuesday Blitz"]
[Site "Chess.com"]
[Date "2020.02.04"]
[Round "3"]
[White "r31415"]
[Black "novocane"]
[Result "1-0"]
[WhiteElo "2380"]
[BlackElo "2148"]
[TimeControl "180+2"]
[EndTime "13:38:15 PST"]
[Termination "r31415 won by resignation"]

1. d4 {[%clk 0:03:01.9]} 1... Nf6 {[%clk 0:03:00.5]} 2. Nf3 {[%clk 0:03:02.3]}
2... e6 {[%clk 0:03:01.7]} 3. c4 {[%clk 0:03:02.1]} 3... b6 {[%clk 0:03:02.7]}
4. g3 {[%clk 0:03:01.9]} 4... Ba6 {[%clk 0:03:03.7]} 5. Qc2 {[%clk 0:03:00]}
5... c5 {[%clk 0:02:58.8]} 6. Bg2 {[%clk 0:02:57.2]} 6... Nc6 {[%clk 0:02:50.9]}
7. d5 {[%clk 0:02:17.4]} 7... exd5 {[%clk 0:02:39.8]} 8. cxd5 {[%clk 0:02:18.3]}
8... Nb4 {[%clk 0:02:38.2]} 9. Qa4 {[%clk 0:02:17]} 9... b5 {[%clk 0:02:37.5]}
10. Qd1 {[%clk 0:02:15.9]} 10... Nbxd5 {[%clk 0:02:22.1]} 11. O-O {[%clk
0:02:05.4]} 11... Be7 {[%clk 0:01:59.6]} 12. e4 {[%clk 0:02:03.8]} 12... Nb6
{[%clk 0:01:55.1]} 13. e5 {[%clk 0:02:01.6]} 13... Nfd5 {[%clk 0:01:48.1]} 14.
Ne1 {[%clk 0:01:31.7]} 14... Bb7 {[%clk 0:01:39.7]} 15. Qg4 {[%clk 0:01:28.8]}
15... O-O {[%clk 0:01:00.5]} 16. Bh6 {[%clk 0:01:27.7]} 16... g6 {[%clk
0:01:01.8]} 17. Bxf8 {[%clk 0:01:27.4]} 17... Bxf8 {[%clk 0:01:03]} 18. Nc3
{[%clk 0:01:20.9]} 18... Nxc3 {[%clk 0:00:25.7]} 19. bxc3 {[%clk 0:01:21.8]}
19... Bxg2 {[%clk 0:00:24.2]} 20. Nxg2 {[%clk 0:01:23.7]} 20... d5 {[%clk
0:00:21.1]} 21. Rfd1 {[%clk 0:01:18.5]} 21... Qe7 {[%clk 0:00:18]} 22. f4 {[%clk
0:01:03.9]} 22... Bg7 {[%clk 0:00:09.1]} 23. Ne3 {[%clk 0:00:59.4]} 23... Rd8
{[%clk 0:00:07.4]} 24. Qf3 {[%clk 0:01:00.2]} 24... Qe6 {[%clk 0:00:06.3]} 25.
Rd2 {[%clk 0:00:53.5]} 25... a6 {[%clk 0:00:04.4]} 26. Rad1 {[%clk 0:00:54.4]}
26... d4 {[%clk 0:00:05.4]} 27. cxd4 {[%clk 0:00:55.7]} 27... cxd4 {[%clk
0:00:04.4]} 28. Rxd4 {[%clk 0:00:57.1]} 28... Rxd4 {[%clk 0:00:04.3]} 29. Rxd4
{[%clk 0:00:59]} 29... Qxa2 {[%clk 0:00:05.5]} 30. Rd8+ {[%clk 0:01:00.6]} 30...
Bf8 {[%clk 0:00:06.5]} 31. Qb7 {[%clk 0:00:48.1]} 31... Qa1+ {[%clk 0:00:05.7]}
32. Nf1 {[%clk 0:00:49.1]} 32... Qc1 {[%clk 0:00:04.9]} 33. Qxb6 {[%clk
0:00:47.7]} 33... Kg7 {[%clk 0:00:06.1]} 1-0

[Event "*** Titled Tuesday Blitz"]
[Site "Chess.com"]
[Date "2020.02.04"]
[Round "3"]
[White "volcanoexplorer"]
[Black "Philosopherrr"]
[Result "0-1"]
[WhiteElo "2611"]
[BlackElo "2451"]
[TimeControl "180+2"]
[EndTime "13:38:22 PST"]
[Termination "Philosopherrr won by resignation"]

1. e4 {[%clk 0:02:40]} 1... e5 {[%clk 0:02:58.1]} 2. Nf3 {[%clk 0:02:40.5]} 2...
Nc6 {[%clk 0:02:58.8]} 3. Bc4 {[%clk 0:02:41.4]} 3... Bc5 {[%clk 0:02:59.4]} 4.
O-O {[%clk 0:02:42.6]} 4... Nf6 {[%clk 0:03:00.8]} 5. d3 {[%clk 0:02:43.9]} 5...
d6 {[%clk 0:03:01.2]} 6. c3 {[%clk 0:02:45]} 6... O-O {[%clk 0:03:02]} 7. Re1
{[%clk 0:02:42.8]} 7... h6 {[%clk 0:02:56.2]} 8. Nbd2 {[%clk 0:02:42.6]} 8... a5
{[%clk 0:02:57.5]} 9. a4 {[%clk 0:02:42.8]} 9... Ne7 {[%clk 0:02:54.4]} 10. Nf1
{[%clk 0:02:42.9]} 10... Ng6 {[%clk 0:02:55.1]} 11. Ng3 {[%clk 0:02:39.6]} 11...
c6 {[%clk 0:02:48.6]} 12. Ba2 {[%clk 0:02:15.1]} 12... Be6 {[%clk 0:02:44.1]}
13. Bd2 {[%clk 0:02:05.1]} 13... Re8 {[%clk 0:02:41.7]} 14. Bxe6 {[%clk
0:02:02.2]} 14... Rxe6 {[%clk 0:02:41.3]} 15. d4 {[%clk 0:01:54.4]} 15... Ba7
{[%clk 0:02:33.1]} 16. Qb3 {[%clk 0:01:47.8]} 16... Qd7 {[%clk 0:02:23.1]} 17.
Rad1 {[%clk 0:01:47]} 17... exd4 {[%clk 0:02:23.9]} 18. Nxd4 {[%clk 0:01:35.2]}
18... Ree8 {[%clk 0:02:19.5]} 19. Ndf5 {[%clk 0:01:24.7]} 19... d5 {[%clk
0:02:08]} 20. Be3 {[%clk 0:01:13.1]} 20... Nxe4 {[%clk 0:01:51]} 21. Bxa7 {[%clk
0:00:56]} 21... Nxg3 {[%clk 0:01:51.5]} 22. Rxe8+ {[%clk 0:00:46.3]} 22... Qxe8
{[%clk 0:01:49]} 23. hxg3 {[%clk 0:00:46.4]} 23... Rxa7 {[%clk 0:01:46.1]} 24.
Qb6 {[%clk 0:00:47.1]} 24... Qe2 {[%clk 0:01:41.6]} 25. Qd4 {[%clk 0:00:39.1]}
25... f6 {[%clk 0:01:33.9]} 26. Ne3 {[%clk 0:00:30.1]} 26... Ra8 {[%clk
0:01:30.3]} 27. Rd2 {[%clk 0:00:25.4]} 27... Qe1+ {[%clk 0:01:28]} 28. Kh2
{[%clk 0:00:26.3]} 28... Qb1 {[%clk 0:01:28.3]} 29. Qg4 {[%clk 0:00:25]} 29...
Ne5 {[%clk 0:01:28.1]} 30. Qe6+ {[%clk 0:00:26]} 30... Kh8 {[%clk 0:01:28.4]}
31. f4 {[%clk 0:00:26.8]} 31... Qe4 {[%clk 0:01:22]} 32. fxe5 {[%clk 0:00:17.9]}
32... Qxe3 {[%clk 0:01:23]} 33. Rd1 {[%clk 0:00:18]} 33... Qxe5 {[%clk
0:01:23.5]} 34. Qg4 {[%clk 0:00:18.4]} 34... Re8 {[%clk 0:01:22.8]} 35. Rf1
{[%clk 0:00:19.5]} 35... Qg5 {[%clk 0:01:21.3]} 36. Qf3 {[%clk 0:00:20.1]} 36...
Re3 {[%clk 0:01:19.8]} 37. Qf2 {[%clk 0:00:19]} 37... Qh5+ {[%clk 0:01:20.9]}
38. Kg1 {[%clk 0:00:20.5]} 38... Qe5 {[%clk 0:01:22]} 39. Kh2 {[%clk 0:00:21.2]}
39... Qe4 {[%clk 0:01:21.6]} 40. Qf4 {[%clk 0:00:13.4]} 40... Qxf4 {[%clk
0:01:22.2]} 41. Rxf4 {[%clk 0:00:15.3]} 41... Re4 {[%clk 0:01:23.5]} 42. Rf2
{[%clk 0:00:13.1]} 42... Rxa4 {[%clk 0:01:22.1]} 43. Re2 {[%clk 0:00:14.5]}
43... Ra2 {[%clk 0:01:23.3]} 44. Kg1 {[%clk 0:00:14]} 44... a4 {[%clk
0:01:23.9]} 45. Kf1 {[%clk 0:00:14.3]} 45... a3 {[%clk 0:01:24.7]} 46. Re8+
{[%clk 0:00:15.6]} 46... Kh7 {[%clk 0:01:25.4]} 47. bxa3 {[%clk 0:00:17.5]}
47... Rxa3 {[%clk 0:01:26.4]} 48. Re7 {[%clk 0:00:18.6]} 48... b5 {[%clk
0:01:25.4]} 49. Re3 {[%clk 0:00:19.3]} 49... b4 {[%clk 0:01:26.7]} 0-1

[Event "*** Titled Tuesday Blitz"]
[Site "Chess.com"]
[Date "2020.02.04"]
[Round "3"]
[White "WPWPWP-2015"]
[Black "CM_Perligero"]
[Result "1-0"]
[WhiteElo "2525"]
[BlackElo "2092"]
[TimeControl "180+2"]
[EndTime "13:38:25 PST"]
[Termination "WPWPWP-2015 won by resignation"]

1. d4 {[%clk 0:03:01.9]} 1... Nf6 {[%clk 0:02:58.5]} 2. c4 {[%clk 0:03:02.6]}
2... c6 {[%clk 0:02:58.5]} 3. Nf3 {[%clk 0:03:01.2]} 3... d5 {[%clk 0:02:55.7]}
4. Nc3 {[%clk 0:03:02.3]} 4... e6 {[%clk 0:02:41.4]} 5. e3 {[%clk 0:02:52.6]}
5... Nbd7 {[%clk 0:02:37.3]} 6. Qc2 {[%clk 0:02:53.2]} 6... Bd6 {[%clk
0:02:37.7]} 7. b3 {[%clk 0:02:54.1]} 7... O-O {[%clk 0:02:37.2]} 8. Be2 {[%clk
0:02:55.4]} 8... a6 {[%clk 0:02:33.3]} 9. c5 {[%clk 0:02:54.2]} 9... Bc7 {[%clk
0:02:33.1]} 10. Bb2 {[%clk 0:02:54.7]} 10... e5 {[%clk 0:02:33.5]} 11. h3 {[%clk
0:02:51.9]} 11... Re8 {[%clk 0:02:22.2]} 12. O-O-O {[%clk 0:02:51]} 12... b6
{[%clk 0:02:16]} 13. cxb6 {[%clk 0:02:46.5]} 13... Bxb6 {[%clk 0:02:06.6]} 14.
Na4 {[%clk 0:02:47.2]} 14... e4 {[%clk 0:02:01.3]} 15. Ne5 {[%clk 0:02:41.3]}
15... Nxe5 {[%clk 0:01:55.9]} 16. dxe5 {[%clk 0:02:41.8]} 16... Nd7 {[%clk
0:01:55.6]} 17. Qxc6 {[%clk 0:02:31.6]} 17... Rb8 {[%clk 0:01:24.2]} 18. Qxd5
{[%clk 0:02:29.7]} 18... Qc7+ {[%clk 0:01:23]} 19. Kb1 {[%clk 0:02:29.8]} 19...
Nxe5 {[%clk 0:01:20.9]} 20. Nxb6 {[%clk 0:02:17.2]} 20... Nd3 {[%clk 0:00:29.8]}
21. Bxd3 {[%clk 0:01:56.2]} 21... exd3 {[%clk 0:00:21.7]} 22. Nxc8 {[%clk
0:01:54.8]} 22... Qc2+ {[%clk 0:00:16]} 23. Ka1 {[%clk 0:01:55.4]} 23... Rbxc8
{[%clk 0:00:16.1]} 24. Qxd3 {[%clk 0:01:54.5]} 24... Qxf2 {[%clk 0:00:16.2]} 25.
Rhf1 {[%clk 0:01:52.8]} 25... Qg3 {[%clk 0:00:07.6]} 26. e4 {[%clk 0:01:38.1]}
26... Qg6 {[%clk 0:00:08.2]} 27. e5 {[%clk 0:01:33.5]} 27... Qe6 {[%clk
0:00:03.3]} 28. Qd5 {[%clk 0:01:32.3]} 28... a5 {[%clk 0:00:03]} 29. Qxe6 {[%clk
0:01:31.3]} 29... Rxe6 {[%clk 0:00:04.9]} 30. Rd7 {[%clk 0:01:31.1]} 30... Rce8
{[%clk 0:00:06.5]} 31. Rfxf7 {[%clk 0:01:29.2]} 31... Rg6 {[%clk 0:00:07.1]} 32.
g4 {[%clk 0:01:28.7]} 32... h5 {[%clk 0:00:07.4]} 33. e6 {[%clk 0:01:25.5]}
33... Rexe6 {[%clk 0:00:08.1]} 34. Rxg7+ {[%clk 0:01:24.7]} 34... Rxg7 {[%clk
0:00:08.9]} 35. Rxg7+ {[%clk 0:01:25]} 35... Kf8 {[%clk 0:00:09.5]} 36. a3
{[%clk 0:01:17.8]} 36... Re1+ {[%clk 0:00:05.2]} 37. Ka2 {[%clk 0:01:18.2]}
37... Re2 {[%clk 0:00:06.5]} 38. gxh5 {[%clk 0:01:17.1]} 38... Rxb2+ {[%clk
0:00:06.8]} 39. Kxb2 {[%clk 0:01:17.3]} 39... Kxg7 {[%clk 0:00:08.4]} 40. Kc3
{[%clk 0:01:18.4]} 1-0

[Event "*** Titled Tuesday Blitz"]
[Site "Chess.com"]
[Date "2020.02.04"]
[Round "3"]
[White "Shant_Sargsyan"]
[Black "LogoCzar"]
[Result "1-0"]
[WhiteElo "2987"]
[BlackElo "2511"]
[TimeControl "180+2"]
[EndTime "13:38:32 PST"]
[Termination "Shant_Sargsyan won by checkmate"]

1. Nf3 {[%clk 0:03:01.7]} 1... c5 {[%clk 0:02:58.7]} 2. e4 {[%clk 0:03:03]} 2...
d6 {[%clk 0:02:59.6]} 3. Nc3 {[%clk 0:03:04.9]} 3... Nf6 {[%clk 0:03:00.6]} 4.
d4 {[%clk 0:03:05.8]} 4... cxd4 {[%clk 0:03:01.9]} 5. Nxd4 {[%clk 0:03:07.7]}
5... a6 {[%clk 0:03:03.3]} 6. Be3 {[%clk 0:03:08.6]} 6... e5 {[%clk 0:03:04.2]}
7. Nf3 {[%clk 0:03:09.8]} 7... Be7 {[%clk 0:03:04.4]} 8. Bc4 {[%clk 0:03:10.9]}
8... O-O {[%clk 0:03:04.8]} 9. O-O {[%clk 0:03:12.2]} 9... Be6 {[%clk
0:03:06.3]} 10. Bb3 {[%clk 0:03:13.4]} 10... Nc6 {[%clk 0:03:06.9]} 11. h3
{[%clk 0:03:11.3]} 11... Qc7 {[%clk 0:03:07.5]} 12. Bg5 {[%clk 0:03:08.2]} 12...
Na5 {[%clk 0:03:07.7]} 13. Bxf6 {[%clk 0:03:06.8]} 13... Bxf6 {[%clk 0:03:07.2]}
14. Nd5 {[%clk 0:03:08.2]} 14... Bxd5 {[%clk 0:02:56]} 15. Bxd5 {[%clk
0:03:10.1]} 15... Rac8 {[%clk 0:02:52.6]} 16. c3 {[%clk 0:03:09.8]} 16... Be7
{[%clk 0:02:51.6]} 17. Nd2 {[%clk 0:03:06.1]} 17... b5 {[%clk 0:02:51.2]} 18.
Kh1 {[%clk 0:02:55.3]} 18... Kh8 {[%clk 0:02:51.6]} 19. Qe2 {[%clk 0:02:52.5]}
19... Bg5 {[%clk 0:02:51]} 20. Nf3 {[%clk 0:02:51.7]} 20... Be7 {[%clk
0:02:51.5]} 21. h4 {[%clk 0:02:50.5]} 21... f5 {[%clk 0:02:52]} 22. exf5 {[%clk
0:02:51.6]} 22... Rxf5 {[%clk 0:02:52.4]} 23. Be4 {[%clk 0:02:52.9]} 23... Rf4
{[%clk 0:02:51.4]} 24. g3 {[%clk 0:02:52.9]} 24... Rf7 {[%clk 0:02:49.7]} 25.
Rad1 {[%clk 0:02:52.4]} 25... Qd7 {[%clk 0:02:37.1]} 26. Kg2 {[%clk 0:02:52.7]}
26... Qg4 {[%clk 0:02:32.5]} 27. Bd5 {[%clk 0:02:23]} 27... Rf4 {[%clk
0:02:23.3]} 28. Ng1 {[%clk 0:02:14.9]} 28... Qg6 {[%clk 0:02:12.5]} 29. h5
{[%clk 0:02:12.6]} 29... Qg4 {[%clk 0:02:02.9]} 30. Bf3 {[%clk 0:02:09.3]} 30...
Rxf3 {[%clk 0:01:42.2]} 31. Qxf3 {[%clk 0:02:11.2]} 31... Qe6 {[%clk 0:01:41.7]}
32. Qd5 {[%clk 0:02:11.8]} 32... Qf5 {[%clk 0:01:38.7]} 33. Nf3 {[%clk
0:02:05.8]} 33... Nc4 {[%clk 0:01:30.4]} 34. b3 {[%clk 0:02:03.5]} 34... Nb6
{[%clk 0:01:16.2]} 35. Qb7 {[%clk 0:02:04]} 35... Rf8 {[%clk 0:01:15.3]} 36. Nh2
{[%clk 0:02:03.3]} 36... Nc8 {[%clk 0:00:57.5]} 37. Qxa6 {[%clk 0:02:04.3]}
37... Qxh5 {[%clk 0:00:51.9]} 38. Qxb5 {[%clk 0:02:04.3]} 38... g5 {[%clk
0:00:51.7]} 39. Qd3 {[%clk 0:01:58.4]} 39... g4 {[%clk 0:00:49.3]} 40. Qe4
{[%clk 0:01:54.9]} 40... Qh3+ {[%clk 0:00:40.3]} 41. Kg1 {[%clk 0:01:56.2]}
41... Rg8 {[%clk 0:00:26.3]} 42. c4 {[%clk 0:01:56.7]} 42... Bh4 {[%clk
0:00:21.5]} 43. Qg2 {[%clk 0:01:57.7]} 43... Bxg3 {[%clk 0:00:18.4]} 44. fxg3
{[%clk 0:01:59]} 44... Qh5 {[%clk 0:00:17.7]} 45. Qf2 {[%clk 0:02:00.6]} 45...
h6 {[%clk 0:00:14.8]} 46. Qf6+ {[%clk 0:02:01]} 46... Rg7 {[%clk 0:00:15.3]} 47.
c5 {[%clk 0:01:56.3]} 47... Qh3 {[%clk 0:00:13.8]} 48. Qf2 {[%clk 0:01:55.5]}
48... dxc5 {[%clk 0:00:12.1]} 49. Rd8+ {[%clk 0:01:56.3]} 49... Rg8 {[%clk
0:00:11.5]} 50. Rxg8+ {[%clk 0:01:55.2]} 50... Kxg8 {[%clk 0:00:12.9]} 51. Qf8+
{[%clk 0:01:56]} 51... Kh7 {[%clk 0:00:13.4]} 52. Rf7+ {[%clk 0:01:57.9]} 52...
Kg6 {[%clk 0:00:14.7]} 53. Qg7+ {[%clk 0:01:59.8]} 53... Kh5 {[%clk 0:00:15.9]}
54. Rf5# {[%clk 0:01:59.5]} 1-0

[Event "*** Titled Tuesday Blitz"]
[Site "Chess.com"]
[Date "2020.02.04"]
[Round "3"]
[White "Poghosyan_Suren"]
[Black "heyiampotato"]
[Result "1-0"]
[WhiteElo "2669"]
[BlackElo "2462"]
[TimeControl "180+2"]
[EndTime "13:38:33 PST"]
[Termination "Poghosyan_Suren won by resignation"]

1. Nf3 {[%clk 0:03:01.9]} 1... Nf6 {[%clk 0:03:00.7]} 2. b3 {[%clk 0:03:02]}
2... g6 {[%clk 0:03:01.5]} 3. Bb2 {[%clk 0:03:02.8]} 3... Bg7 {[%clk 0:03:03]}
4. c4 {[%clk 0:03:04.2]} 4... O-O {[%clk 0:03:04.4]} 5. g3 {[%clk 0:03:05.7]}
5... d6 {[%clk 0:03:06]} 6. Bg2 {[%clk 0:03:07.2]} 6... e5 {[%clk 0:03:07.1]} 7.
O-O {[%clk 0:03:08.7]} 7... Nc6 {[%clk 0:03:05.1]} 8. d4 {[%clk 0:03:09.8]} 8...
e4 {[%clk 0:03:01.1]} 9. Ne1 {[%clk 0:03:10.3]} 9... Re8 {[%clk 0:03:01.1]} 10.
Nc2 {[%clk 0:03:10.2]} 10... h5 {[%clk 0:02:54.5]} 11. Nc3 {[%clk 0:03:02.7]}
11... h4 {[%clk 0:02:49.8]} 12. Ne3 {[%clk 0:02:45.9]} 12... Bh6 {[%clk
0:02:07]} 13. Ned5 {[%clk 0:02:41.9]} 13... Bf5 {[%clk 0:01:55.6]} 14. Nxf6+
{[%clk 0:02:35.6]} 14... Qxf6 {[%clk 0:01:47.6]} 15. Nd5 {[%clk 0:02:35.5]}
15... Qd8 {[%clk 0:01:45.1]} 16. Ne3 {[%clk 0:02:29.1]} 16... Bxe3 {[%clk
0:01:31.8]} 17. fxe3 {[%clk 0:02:29.4]} 17... hxg3 {[%clk 0:01:29.3]} 18. hxg3
{[%clk 0:02:25.8]} 18... Qg5 {[%clk 0:01:18.5]} 19. Kf2 {[%clk 0:02:25.8]} 19...
Bg4 {[%clk 0:01:08.3]} 20. Rh1 {[%clk 0:02:16]} 20... d5 {[%clk 0:00:51.2]} 21.
Rh4 {[%clk 0:01:41.9]} 21... Re6 {[%clk 0:00:46.8]} 22. Qh1 {[%clk 0:01:37.2]}
22... Rf6+ {[%clk 0:00:46.4]} 23. Ke1 {[%clk 0:01:37.4]} 23... Bh5 {[%clk
0:00:34.3]} 24. cxd5 {[%clk 0:01:21.6]} 24... Qxe3 {[%clk 0:00:28.2]} 25. Rxh5
{[%clk 0:01:20]} 25... gxh5 {[%clk 0:00:28.2]} 26. Qxh5 {[%clk 0:01:10.9]} 26...
Nb4 {[%clk 0:00:22.5]} 27. Qg4+ {[%clk 0:00:54.2]} 27... Rg6 {[%clk 0:00:23.1]}
28. Qxe4 {[%clk 0:00:54.3]} 28... Qxe4 {[%clk 0:00:14.3]} 29. Bxe4 {[%clk
0:00:54.6]} 29... Rxg3 {[%clk 0:00:15.5]} 30. Kf2 {[%clk 0:00:53.7]} 30... Rg5
{[%clk 0:00:13.1]} 31. Bc1 {[%clk 0:00:47]} 31... Rg4 {[%clk 0:00:09.8]} 32. Bf3
{[%clk 0:00:42.5]} 32... Rxd4 {[%clk 0:00:10.7]} 33. Bg5 {[%clk 0:00:36.7]}
33... Nxd5 {[%clk 0:00:06.2]} 34. Rh1 {[%clk 0:00:35.3]} 34... Kf8 {[%clk
0:00:07.7]} 35. Rh8+ {[%clk 0:00:34.8]} 35... Kg7 {[%clk 0:00:09]} 36. Rxa8
{[%clk 0:00:36.7]} 1-0

[Event "*** Titled Tuesday Blitz"]
[Site "Chess.com"]
[Date "2020.02.04"]
[Round "3"]
[White "GMHess"]
[Black "Region_07"]
[Result "1-0"]
[WhiteElo "2747"]
[BlackElo "2483"]
[TimeControl "180+2"]
[EndTime "13:38:35 PST"]
[Termination "GMHess won by checkmate"]

1. b3 {[%clk 0:03:01.9]} 1... f5 {[%clk 0:02:55.9]} 2. Bb2 {[%clk 0:02:59.5]}
2... Nf6 {[%clk 0:02:57.2]} 3. h3 {[%clk 0:02:46.1]} 3... d6 {[%clk 0:02:43.6]}
4. d4 {[%clk 0:02:38.6]} 4... g6 {[%clk 0:02:42.4]} 5. c4 {[%clk 0:02:36.7]}
5... Bg7 {[%clk 0:02:43.6]} 6. Nc3 {[%clk 0:02:38.2]} 6... O-O {[%clk
0:02:39.2]} 7. Qd2 {[%clk 0:02:38.7]} 7... c6 {[%clk 0:02:27.8]} 8. O-O-O {[%clk
0:02:33.1]} 8... a5 {[%clk 0:02:18.7]} 9. e3 {[%clk 0:02:21.8]} 9... a4 {[%clk
0:02:18.5]} 10. Nxa4 {[%clk 0:02:21.2]} 10... Ne4 {[%clk 0:02:19.4]} 11. Qc2
{[%clk 0:02:17.7]} 11... Qa5 {[%clk 0:02:07.2]} 12. Kb1 {[%clk 0:02:05.4]} 12...
Na6 {[%clk 0:01:50.8]} 13. a3 {[%clk 0:02:00.6]} 13... b5 {[%clk 0:01:46.3]} 14.
Nc3 {[%clk 0:01:30.7]} 14... bxc4 {[%clk 0:01:00.2]} 15. Bxc4+ {[%clk
0:00:42.9]} 15... d5 {[%clk 0:00:59.7]} 16. Bd3 {[%clk 0:00:38.4]} 16... e6
{[%clk 0:00:48.6]} 17. Nf3 {[%clk 0:00:24.1]} 17... c5 {[%clk 0:00:40.5]} 18.
Ne5 {[%clk 0:00:11.6]} 18... Bxe5 {[%clk 0:00:18.7]} 19. dxe5 {[%clk 0:00:12.5]}
19... Bd7 {[%clk 0:00:20]} 20. Bxe4 {[%clk 0:00:11.4]} 20... fxe4 {[%clk
0:00:21]} 21. Nxe4 {[%clk 0:00:12.3]} 21... Rab8 {[%clk 0:00:18.2]} 22. Nf6+
{[%clk 0:00:11.9]} 22... Rxf6 {[%clk 0:00:18.2]} 23. exf6 {[%clk 0:00:13.8]}
23... e5 {[%clk 0:00:16.9]} 24. Rxd5 {[%clk 0:00:11.8]} 24... Bf5 {[%clk
0:00:17.9]} 25. e4 {[%clk 0:00:13.1]} 25... Be6 {[%clk 0:00:14.3]} 26. Bxe5
{[%clk 0:00:08.9]} 26... Rb7 {[%clk 0:00:13.2]} 27. Rhd1 {[%clk 0:00:09.3]}
27... Qa4 {[%clk 0:00:11.5]} 28. Bb2 {[%clk 0:00:03.2]} 28... Rxb3 {[%clk
0:00:10.4]} 29. R5d3 {[%clk 0:00:03.8]} 29... c4 {[%clk 0:00:09.3]} 30. Rxb3
{[%clk 0:00:04.7]} 30... cxb3 {[%clk 0:00:09.2]} 31. Qd3 {[%clk 0:00:05.4]}
31... Nc5 {[%clk 0:00:09.3]} 32. Qd8+ {[%clk 0:00:06.2]} 32... Kf7 {[%clk
0:00:10.2]} 33. Qe7+ {[%clk 0:00:07.8]} 33... Kg8 {[%clk 0:00:08.2]} 34. Qg7#
{[%clk 0:00:09.7]} 1-0